Cogmind - Beta 12 @@@ ROGUE MODE // 2023.03.04 @ 21:51:30 Player: Red Box Result: Destroyed by YI-UF0 with YI-UF0's Doublenader Performance ------------- Evolutions (0) 0 Regions Visited (4) 800 Robots Destroyed (26) 130 Value Destroyed (403) 403 Prototype IDs (0) 0 Alien Tech Used (0) 0 Bonus (-264) -264 TOTAL SCORE: 1069 Bonus ------- Follower Combat Kills 21 Friendly Fire -285 Cogmind --------- Core Integrity 0/250 Matter 282/300 Energy 160/160 System Corruption 0% Temperature Cool (9) Movement Rolling (95) Ox1 Location -9/Mines Parts ------- > --- POWER (1) -------- Light Nuclear Core > --- PROPULSION (2) --- Wheel Wheel > --- UTILITY (2) ------ Large Storage Unit Light Armor Plating > --- WEAPON (2) ------- Light Cannon Light Cannon > --- INVENTORY (15) --- Wheel Compact Wheel Improved Heat Sink High-capacity Storage Unit High-capacity Battery (250) Improved Terrain Scanner Shield Generator EM Pulse Gun Shotgun Light Cannon Light Cannon Grenade Launcher Makeshift Sword Signal Generator Peak State ------------ > --- POWER ------------ Light Nuclear Core > --- PROPULSION ------- Wheel Wheel > --- UTILITY ---------- Large Storage Unit Hacking Suite > --- WEAPON ----------- Light Cannon Light Cannon > --- INVENTORY -------- Wheel Wheel Compact Wheel Improved Heat Sink High-capacity Storage Unit High-capacity Battery Improved Terrain Scanner ECM Suite Light Armor Plating EM Pulse Gun Light Cannon Light Cannon Grenade Launcher Makeshift Sword Signal Generator [Rating: 13] Favorites ----------- Power Light Ion Engine Engine Light Ion Engine Power Core Light Nuclear Core Propulsion Wheel Leg Aluminum Leg Wheel Wheel Utility Large Storage Unit Device Improved Terrain Scanner Storage Large Storage Unit Hackware Hacking Suite Protection Light Armor Plating Weapon Light Cannon Energy Gun Medium Laser Ballistic Gun Assault Rifle Ballistic Cannon Light Cannon Launcher Grenade Launcher Build | -11 -10 -10 -10 -9 ------- Run | Jun Mat Min Exi Min Slots Evolved . | . . . . . Power . | . . . . . Propulsion . | . . . . . Utility . | . . . . . Weapon . | . . . . . Parts Attached 27 | 9 13 . . 5 Power 3 | 1 1 . . 1 Engine 2 | 1 1 . . . Core 1 | . . . . 1 Reactor . | . . . . . Propulsion 7 | 4 2 . . 1 Treads . | . . . . . Leg 2 | 2 . . . . Wheel 5 | 2 2 . . 1 Hover . | . . . . . Flight . | . . . . . Utility 9 | 2 6 . . 1 Device 5 | 1 4 . . . Storage 2 | 1 1 . . . Processor . | . . . . . Hackware 1 | . 1 . . . Protection 1 | . . . . 1 Artifact . | . . . . . Weapon 8 | 2 4 . . 2 Energy Gun 2 | 1 1 . . . Energy Cannon . | . . . . . Ballistic Gun 1 | 1 . . . . Ballistic Cannon 3 | . 2 . . 1 Launcher 2 | . 1 . . 1 Special Weapon . | . . . . . Impact Weapon . | . . . . . Slashing Weapon . | . . . . . Piercing Weapon . | . . . . . Special Melee Weapon . | . . . . . Unidentified Prototypes . | . . . . . Parts Lost 1 | . 1 . . . Power 1 | . 1 . . . Propulsion . | . . . . . Utility . | . . . . . Weapon . | . . . . . Highest Loss Streak 1 | . 1 . . . To Critical Strikes . | . . . . . Average Slot Usage (%) 96 | . 92 100 100 100 Engine 8 | . 7 14 14 . Core 2 | . . . . 13 Wheel 27 | . 27 28 28 28 Device 3 | . 7 . . . Storage 14 | . 14 14 14 14 Hackware 9 | . 6 14 14 12 Energy Gun 3 | . 6 . . . Ballistic Gun 3 | . 6 . . . Ballistic Cannon 21 | . 15 28 28 27 Naked Turns . | . . . . . Heaviest Build 34 | 13 29 29 29 34 Greatest Support 20 | 20 20 20 20 20 Greatest Overweight (x) 1 | . 1 1 1 1 Average Overweight (x) . | . . 1 1 1 Largest Inventory Capacity 15 | 8 15 15 15 15 Average Capacity 14 | 7 14 15 15 15 Most Carried 15 | 8 15 15 15 15 Average Carried 14 | 5 13 14 14 14 Final Capacity 15 | 8 15 15 15 15 Final Carried 15 | 8 15 15 15 14 Class Distribution -------------------- 64% | Mutant 25% | Commander-Mutant 10% | Scavenger-Mutant Dominant Class ---------------- Mutant | -10/Materials Commander-Mutant | -10/Mines Commander-Mutant | -10/Exiles Scavenger-Mutant | -9/Mines Resources | -11 -10 -10 -10 -9 ----------- Run | Jun Mat Min Exi Min Matter Collected 741 | 315 278 8 . 140 Remotely . | . . . . . Salvage Created 578 | 85 374 . . 119 Parts 52 | 8 35 . . 9 Haulers Intercepted 1 | . 1 . . . Recyclers Shooed . | . . . . . Parts Field Recycled . | . . . . . Retrieved Matter . | . . . . . Parts Self-Destructed . | . . . . . Prevented . | . . . . . Kills | -11 -10 -10 -10 -9 ------- Run | Jun Mat Min Exi Min Combat Hostiles Destroyed 22 | . 12 . . 10 Guns 5 | . 5 . . . Cannons 9 | . 5 . . 4 AOE 8 | . 2 . . 6 Classes Destroyed 8 | 2 5 . . 1 Tunneler 2 | 2 . . . . Hauler 1 | . 1 . . . Recycler 1 | 1 . . . . Operator 2 | . 1 . . 1 Watcher 3 | . 3 . . . Swarmer 9 | . 6 . . 3 Grunt 8 | . 6 . . 2 Assembled 7 | . . . . 7 Best Kill Streak 7 | 2 4 . . 7 Combat Bots Only 7 | . 4 . . 7 Max Kills in Single Turn 4 | 1 3 . . 4 Gunslinging . | . . . . . Exploded 4 | . 2 . . 4 Melee . | . . . . . Uniques/NPCs Destroyed . | . . . . . Combat | -11 -10 -10 -10 -9 -------- Run | Jun Mat Min Exi Min Damage Taken 853 | . 444 . . 409 Core 256 | . 87 . . 169 Absorbed by Shields . | . . . . . Regen/Repaired (Parts) 34 | . 34 . . . Core Remaining (%) 100 | 100 . . . . Volleys Fired 52 | 9 29 . . 14 Largest 2 | 2 2 . . 2 Hottest 70 | 70 70 . . 70 Shots Fired 99 | 18 57 . . 24 Gun 51 | 18 33 . . . Cannon 44 | . 22 . . 22 Launcher 4 | . 2 . . 2 Special . | . . . . . Kinetic 70 | 9 39 . . 22 Thermal 25 | 9 16 . . . Explosive 4 | . 2 . . 2 Electromagnetic . | . . . . . Robot Hit Streak 6 | 5 6 . . 5 Robot Miss Streak 6 | 3 4 . . 6 Penetration Max . | . . . . . Secondary Targets 1 | . 1 . . . Max Gunslinging Chain 1 | . 1 . . . Shots Hit Robots 50 | 11 29 . . 10 Core Hits 48 | 4 24 . . 20 Critical Kills . | . . . . . Critical Parts Destroyed . | . . . . . Critical Strikes 2 | . 2 . . . Burn 1 | . 1 . . . Blast 1 | . 1 . . . Melee Attacks . | . . . . . Impact . | . . . . . Slashing . | . . . . . Piercing . | . . . . . Sneak Attacks . | . . . . . Combat Hostiles . | . . . . . Follow-up Attacks . | . . . . . Damage Inflicted 1351 | 134 659 . . 558 Guns 356 | 134 222 . . . Cannons 434 | . 224 . . 210 Explosions 561 | . 213 . . 348 Melee . | . . . . . Ramming . | . . . . . Kinetic 614 | 71 333 . . 210 Thermal 176 | 63 113 . . . Explosive 561 | . 213 . . 348 Electromagnetic . | . . . . . Impact . | . . . . . Slashing . | . . . . . Piercing . | . . . . . Highest Corruption . | . . . . . Average Corruption . | . . . . . Corruption Purged . | . . . . . Corruption Blocked . | . . . . . Overload Shots . | . . . . . Overflow Damage 13 | . . . . 13 Projectiles 13 | . . . . 13 Explosions . | . . . . . Melee . | . . . . . Knockbacks 5 | . 2 . . 3 Impact . | . . . . . Kinetic 5 | . 2 . . 3 Secondary . | . . . . . Self-Inflicted Damage 29 | . . . . 29 Shots 2 | . . . . 2 Rammed . | . . . . . Targets Rammed . | . . . . . Kicked . | . . . . . Crushed . | . . . . . Highest Temperature 60 | 47 60 . . 60 Average Temperature 22 | 18 25 . . 20 Received Heat Transfer 152 | . 132 . . 20 Siege Activations . | . . . . . Robots Corrupted . | . . . . . Combat Hostiles . | . . . . . Parts Fried . | . . . . . Impact Corruptions . | . . . . . Robots Melted . | . . . . . Combat Hostiles . | . . . . . Parts Melted . | . . . . . Heat Transferred 592 | 185 407 . . . Parts Sabotaged . | . . . . . Parts Stolen . | . . . . . Parts Stripped . | . . . . . Power Chain Reactions . | . . . . . Missiles Intercepted . | . . . . . Alert | -11 -10 -10 -10 -9 ------- Run | Jun Mat Min Exi Min Peak Influence 189 | 15 189 6 . 171 Initial 9 | . 9 6 . . Average 60 | 4 76 4 . 92 Maximum Alert Level . | . . . . . Low Security (%) 100 | 100 100 100 . 100 Level 1 . | . . . . . Level 2 . | . . . . . Level 3 . | . . . . . Level 4 . | . . . . . Level 5 . | . . . . . High Security . | . . . . . Max Security . | . . . . . Squads Dispatched 1 | . 1 . . . Investigation . | . . . . . Extermination . | . . . . . Reinforcement 1 | . 1 . . . Assault . | . . . . . Garrison . | . . . . . Intercept . | . . . . . Searches Triggered . | . . . . . Construction Impeded . | . . . . . Haulers Reinforced . | . . . . . Active Scanning Responses . | . . . . . Cargo Convoy Interrupts . | . . . . . Stealth | -11 -10 -10 -10 -9 --------- Run | Jun Mat Min Exi Min Distress Signals 1 | . 1 . . . Communications Jammed . | . . . . . Distress Signals . | . . . . . Times Spotted 41 | . 25 . . 16 Peak Tracking Total 9 | . 7 . . 9 Tactical Retreats 2 | . 2 . . . Traps | -11 -10 -10 -10 -9 ------- Run | Jun Mat Min Exi Min Traps Triggered . | . . . . . Indirectly . | . . . . . Trap Hack Attempts . | . . . . . Triggered . | . . . . . Disarmed . | . . . . . Reprogrammed . | . . . . . Reused . | . . . . . Traps Extracted . | . . . . . Installed . | . . . . . Triggered . | . . . . . Machines | -11 -10 -10 -10 -9 ---------- Run | Jun Mat Min Exi Min Machines Disabled 1 | . . . . 1 Max in Single Turn 1 | . . . . 1 Machines Repaired . | . . . . . Machines Sabotaged . | . . . . . Overloaded Fab Kills . | . . . . . Hacking | -11 -10 -10 -10 -9 --------- Run | Jun Mat Min Exi Min Machines Accessed 11 | . 10 . 1 . Terminals 7 | . 7 . . . Fabricators . | . . . . . Repair Stations 1 | . 1 . . . Recycling Units 2 | . 2 . . . Scanalyzers . | . . . . . Garrison Access . | . . . . . Total Hacks 31 | . 30 . 1 . Successful 19 | . 18 . 1 . Failed 11 | . 11 . . . Catastrophic 1 | . 1 . . . Database Lockouts 1 | . 1 . . . Manual 17 | . 17 . . . Terminals 20 | . 20 . . . Fabricators . | . . . . . Repair Stations 4 | . 4 . . . Recycling Units 6 | . 6 . . . Scanalyzers . | . . . . . Garrison Access . | . . . . . Terminal Hacks 7 | . 6 . 1 . Record 1 | . . . 1 . Robot Analysis 2 | . 2 . . . Terminal Index 1 | . 1 . . . Locate Traps 2 | . 2 . . . Recall Reinforcements 1 | . 1 . . . Fabricator Hacks . | . . . . . Repair Station Hacks 3 | . 3 . . . Scan Component 2 | . 2 . . . Repair 1 | . 1 . . . Recycling Unit Hacks 1 | . 1 . . . Retrieve Components 1 | . 1 . . . Scanalyzer . | . . . . . Garrison Access Hacks . | . . . . . Unauthorized Hacks 8 | . 8 . . . Terminals 6 | . 6 . . . Track 1 | . 1 . . . Assimilate 3 | . 3 . . . Botnet 1 | . 1 . . . Operators 1 | . 1 . . . Fabricators . | . . . . . Repair Stations . | . . . . . Recycling Units 2 | . 2 . . . Reject 1 | . 1 . . . Mask 1 | . 1 . . . Scanalyzers . | . . . . . Garrison Access . | . . . . . Data Cores Recovered 1 | . 1 . . . Used 1 | . 1 . . . Hacking Detections 10 | . 10 . . . Full Trace Events . | . . . . . Feedback Events . | . . . . . Feedback Blocked . | . . . . . Robot Schematics Acquired . | . . . . . Robots Built . | . . . . . Authchips . | . . . . . Time . | . . . . . Total Robot Build Rating . | . . . . . Part Schematics Acquired . | . . . . . Parts Built . | . . . . . Authchips . | . . . . . Time . | . . . . . Total Part Build Rating . | . . . . . Parts Repaired 1 | . 1 . . . Time 26 | . 26 . . . Parts Recycled . | . . . . . Recycled Matter . | . . . . . Retrieved Matter . | . . . . . Retrieved Components 9 | . 9 . . . Parts Scanalyzed . | . . . . . Part Schematics Acquired . | . . . . . Parts Damaged . | . . . . . Bothacking | -11 -10 -10 -10 -9 ------------ Run | Jun Mat Min Exi Min Used RIF Installer . | . . . . . Robots Hacked . | . . . . . Non-combat . | . . . . . Combat . | . . . . . Robot Hacks Applied . | . . . . . Relay Couplers Released . | . . . . . Fabnet Peak Effective % . | . . . . . Robots Rewired . | . . . . . Allies Hacked . | . . . . . Hacks Repelled . | . . . . . Allies | -11 -10 -10 -10 -9 -------- Run | Jun Mat Min Exi Min Total Allies 4 | . 1 3 . . Largest Group 4 | . 1 4 4 4 Highest-Rated Group 50 | . 10 50 50 50 Highest-Rated Ally 16 | . 10 16 16 16 Total Orders 7 | . 2 5 . . STAY 3 | . 1 2 . . FOLLOW 4 | . 1 3 . . Ally Attacks 15 | . . . . 15 Total Damage 176 | . . . . 176 Kills 4 | . . . . 4 Allies Corrupted . | . . . . . Allies Melted . | . . . . . Intel | -11 -10 -10 -10 -9 ------- Run | Jun Mat Min Exi Min Robot Analysis Total 2 | . 2 . . . Derelict Logs Recovered 2 | . . 2 . . Drone Launches . | . . . . . Drone Recoveries . | . . . . . Exploration | -11 -10 -10 -10 -9 ------------- Run | Jun Mat Min Exi Min Turns Passed 3065 | 113 1511 575 391 475 Spaces Moved 2347 | 65 1112 541 387 242 Core 7 | 7 . . . . Treads . | . . . . . Legs 34 | 34 . . . . Wheels 2306 | 24 1112 541 387 242 Hover . | . . . . . Flight . | . . . . . Fastest Speed 50 | 50 80 95 95 95 Average Speed 94 | 97 94 95 95 95 Slowest Speed 120 | 120 95 95 95 95 Overloaded Moves . | . . . . . Propulsion Burnouts . | . . . . . Robots Hopped . | . . . . . Cave-ins Triggered . | . . . . . Exploration Rate (%) 64 | 6 97 95 78 45 Regions Visited 4 Branch Regions 3 Pre-discovered Areas 1 | . . . 1 . Known Exits Taken . | . . . . . Unknown Exits Taken 4 | 1 1 1 1 . Scrap Searched 3 | . . 1 . 2 Spaces Dug . | . . . . . Terrain Destroyed 20 | . 10 . . 10 Melee . | . . . . . Projectile . | . . . . . AOE 20 | . 10 . . 10 Terrain Rammed . | . . . . . Walls Destroyed . | . . . . . Machines Disabled . | . . . . . Actions | -11 -10 -10 -10 -9 --------- Run | Jun Mat Min Exi Min Total 3080 | 93 1511 602 411 463 Wait 607 | . 337 58 19 193 Move 2343 | 64 1111 540 386 242 Hop . | . . . . . Pick Up 31 | 9 13 2 3 4 Fast Attach 11 | 8 2 . . 1 Attach 1 | 1 . . . . Detach . | . . . . . Swap 15 | . 11 . . 4 Drop 20 | 2 8 2 3 5 Fire 52 | 9 29 . . 14 Melee . | . . . . . Ram . | . . . . . Kick . | . . . . . Crush . | . . . . . Escape Stasis . | . . . . . Rewire . | . . . . . Trap . | . . . . . Miscellaneous . | . . . . . Route ------- -11/Junkyard -10/Materials (discovered 4 exits: [*Mat x3] / [*Min]) -10/Mines (discovered 3 exits: [*Mat x2] / *Exi) -10/Exiles -9/Mines (discovered 1 exit: [*Mat]) History --------- Turn | Location | Event 21 | -11/Junkyard | Discovered new exit (range 16) 114 | -11/Junkyard | Entered Materials 307 | -10/Materials | Build established: Mutant 344 | -10/Materials | Discovered new exit (range 14) 834 | -10/Materials | Discovered new exit (range 11) 1144 | -10/Materials | Repaired Wheel 1170 | -10/Materials | Discovered new exit (range 8) 1344 | -10/Materials | Discovered new exit (range 11) 1464 | -10/Materials | Central database locked down 1625 | -10/Materials | Entered Mines 1625 | -10/Mines | Accompanied by 1 ally 1668 | -10/Mines | Met a Derelict testing a Signal Generator 1672 | -10/Mines | Found Signal Generator 1715 | -10/Mines | Learned Materials terminal intel 1795 | -10/Mines | A weapon hastily lodged in a ceiling crevice suddenly fell to the ground 1834 | -10/Mines | Assisted by bots powering up and referring to "LRC-V3" 1949 | -10/Mines | Discovered new exit (range 11) 1970 | -10/Mines | Deemed a non-threat by the Exiles lab entrance 1970 | -10/Mines | Discovered new exit (range 5) 2099 | -10/Mines | Discovered new exit (range 11) 2121 | -10/Mines | Build established: Commander-Mutant 2200 | -10/Mines | Entered Exiles 2200 | -10/Exiles | Accompanied by 4 allies 2226 | -10/Exiles | Met 8R-AWN 2238 | -10/Exiles | Met EX-HEX 2277 | -10/Exiles | Met EX-DEC 2281 | -10/Exiles | Learned location of Zion (-6) 2402 | -10/Exiles | Visited The Gauntlet 2463 | -10/Exiles | Met EX-BIN 2562 | -10/Exiles | Discovered new exit (range 12) 2591 | -10/Exiles | Entered Mines 2591 | -9/Mines | Accompanied by 4 allies 2592 | -9/Mines | Assembled infested the area 2611 | -9/Mines | Core integrity fell below 50% 2619 | -9/Mines | Core integrity fell below 20% 2634 | -9/Mines | YI-UF0 nonchalantly dropped a Grenade Launcher on the ground 2640 | -9/Mines | Destroyed 7 combat bots 2982 | -9/Mines | Build established: Scavenger-Mutant 3061 | -9/Mines | Discovered new exit (range 11) 3066 | -9/Mines | Destroyed by YI-UF0 with YI-UF0's Doublenader Last Messages --------------- 02845_ Found 19 Matter. 02845_ Found Shield Generator. 02845_ Found Grenade Launcher. 02845_ Found 28 Matter. 02846_ Acquired 4 matter. 02847_ Dropped ECM Suite. 02851_ Acquired Shield Generator. 02926_ The unstable cave ceiling collapses. 02927_ S-10 Pest destroyed. 02930_ S-10 Pest knocked back. 02933_ S-10 Pest destroyed. 02940_ Acquired 12 matter. 02941_ Acquired 6 matter. 02942_ Acquired 14 matter. 02992_ T-07 Excavator is excavating. 03000_ Discarded Hacking Suite. 03061_ EXIT=FOUND 03062_ Destroyed Shock Absorption System. 03062_ YI-UF0 knocked back. 03065_ The unstable cave ceiling collapses. Map ----- +----------------------------------------------------+ | ?????????????????????????????????????????????????? | | ?????????????????????????????????????????????????? | | ?????????????????????????????????????????????????? | | ?????????????????????????????????????????????????? | | ?????????????????????????????????????????######### | | ????????????????????????????????????????## # | | ???????????????????????????????????????## | | ??????????????????????????###?????###### # | | ??????????????????????????# ###### #### | | ??????????????????????????# ## #### ##??? | | ??????????????????????????# #### ## #??## #???? | | ???????????????????????????????# ## #???### #???? | | ???????????????????????????????# ## #?????# #???? | | ???????????????????????????????# ## #?????# #???? | | ??????????????????##???????????# #?????# #???? | | ???????????????#### ??????????#### #?????# #???? | | ?????????????### ?????????????# #?????# #???? | | ?????????????# ????????????# #?????# #???? | | ?????????????# ????????????# #?????# #???? | | ?????????????# %* ???????????# #?????# #??## | | ????????????## |<% ????????#### ###???# ### | | ??????????? %= ######## ##### ## | | ????????????? ! # # ## """ ## | | ??????????????# # % """ ##### | | ??????????????## g ## """ #?## | | ?????????????# @ ## ### # | | ???????????????# # ########## ### | | ???????????? = #???????# ##?? | | ???????????# #% #] #???????# %####??? | | ??????????? ?? * [%= #??????##% ##?????? | | ?????????????## = #####????### *%##??????? | | ??????????????## # ???????## [##??????? | | ??????????????# # ? ???????# [ #????### | | ??????????????## [ ? ?????### #???## # | | ???????????????## % =% ? # ## ##??## | | ????????????????# # # #### | | ????????????????# # # = # # # | | ????????????????% # # | | ????????????????? # #### ## | | ??????????????????????# ?? ????# #? | | ???????????????????????#????# # # ## | | ????????????????????????????# # ## # | | ??????????????????????????????### ####### | | ????????????????????????????????#### #?????## | | ???????????????????????????????????# #?????## | | ???????????????????????#######????## ##????# | | ???????????????????????# #?#### #????# | | ???????????????????????# """ ### #???## # | | ???????????????????????# """ ## #??## # | | ???????????????????????# """ # ##??# ## | +----------------------------------------------------+ Best States ------------- Heat Dissipation 25 Energy Generation 14 Energy Capacity 160 Matter Stores 300 Matter Capacity 300 Sight Range 16 Terrain Scan Range 16 Terrain Scan Density 10 ECM Strength 1 Armor Coverage 150 Evasion (%) 50 Offensive Hacking 10 Item Schematics ----------------- None Robot Schematics ------------------ None Fabricated ------------ Nothing Alien Tech Used ----------------- None Achievements -------------- None Challenges ------------ None Game ------ Seed FieldExplosiveHumpback Manual? 0 Play Time 00:20:45 Cumulative 526.6 hours Start 2023.03.04 @ 21:30:25 End 2023.03.04 @ 21:51:30 Sessions 1 Manual Loads 0 Difficulty Rogue Special Mode None Game No. 377 Rogue 377 Adventurer 0 Explorer 0 Win Type - Total 1 Types 1/0/0/0/0/0/0/0/0 Lore% 69 Gallery% 77 Achievement% 58 Wizard Run 0 Options --------- ASCII 0 Keyboard 0 Movement Mouse Keybinds 0 Fullscreen 1 Font 16/SmallcapsGlow Map View 75x55 Tactical HUD 1 Map Filters NONE Filters NONE Steam 1 RUN: fa99207b-cd2e-445f-b802-e7236478d651